[Event "*** Titled Tuesday Blitz"]
[Site "Chess.com"]
[Date "2018.06.05"]
[Round "7"]
[White "blitzcopter"]
[Black "awesomevishesh"]
[Result "1-0"]
[WhiteElo "2103"]
[BlackElo "2102"]
[TimeControl "180+2"]
[EndTime "14:37:50 PDT"]
[Termination "blitzcopter won by checkmate"]

1. e4 {[%clk 0:03:01.9]} 1... c5 {[%clk 0:02:59.6]} 2. Nc3 {[%clk 0:03:01.9]}
2... Nc6 {[%clk 0:02:59.4]} 3. g3 {[%clk 0:03:02.3]} 3... g6 {[%clk 0:02:59.8]}
4. Bg2 {[%clk 0:03:02.7]} 4... Bg7 {[%clk 0:03:00.9]} 5. d3 {[%clk 0:03:02.8]}
5... e6 {[%clk 0:02:58.8]} 6. Be3 {[%clk 0:03:04]} 6... d6 {[%clk 0:02:56.3]} 7.
Qd2 {[%clk 0:03:04.6]} 7... Rb8 {[%clk 0:02:53.4]} 8. Nf3 {[%clk 0:03:04]} 8...
Nd4 {[%clk 0:02:39.9]} 9. Bxd4 {[%clk 0:03:03.4]} 9... cxd4 {[%clk 0:02:40.6]}
10. Nb5 {[%clk 0:03:04.9]} 10... Qb6 {[%clk 0:02:16.2]} 11. Qb4 {[%clk
0:03:04.2]} 11... Kd7 {[%clk 0:01:14]} 12. e5 {[%clk 0:02:55.1]} 12... dxe5
{[%clk 0:01:02]} 13. Nd2 {[%clk 0:02:53.7]} 13... Nh6 {[%clk 0:00:18]} 14. Nc4
{[%clk 0:02:30]} 14... Qa6 {[%clk 0:00:18.8]} 15. Qc5 {[%clk 0:02:21.5]} 15...
f6 {[%clk 0:00:17.9]} 16. Qc7+ {[%clk 0:02:16.8]} 16... Ke8 {[%clk 0:00:17.2]}
17. Nbd6+ {[%clk 0:02:16.8]} 17... Kf8 {[%clk 0:00:16]} 18. Qd8# {[%clk
0:02:15.3]} 1-0

[Event "*** Titled Tuesday Blitz"]
[Site "Chess.com"]
[Date "2018.06.05"]
[Round "7"]
[White "ChrisTool2"]
[Black "EmreDedebas"]
[Result "1-0"]
[WhiteElo "2261"]
[BlackElo "2383"]
[TimeControl "180+2"]
[EndTime "14:37:57 PDT"]
[Termination "ChrisTool2 won by resignation"]

1. d4 {[%clk 0:03:01.9]} 1... Nf6 {[%clk 0:02:50.8]} 2. c4 {[%clk 0:03:02.5]}
2... e6 {[%clk 0:02:44.7]} 3. Nf3 {[%clk 0:03:02.9]} 3... b6 {[%clk 0:02:43]} 4.
a3 {[%clk 0:03:01.5]} 4... Ba6 {[%clk 0:02:40.6]} 5. Qc2 {[%clk 0:03:01.5]} 5...
Bb7 {[%clk 0:02:38.4]} 6. Nc3 {[%clk 0:02:59.4]} 6... c5 {[%clk 0:02:37.9]} 7.
d5 {[%clk 0:02:48.7]} 7... exd5 {[%clk 0:01:56.5]} 8. cxd5 {[%clk 0:02:48.7]}
8... d6 {[%clk 0:01:58]} 9. e4 {[%clk 0:02:35]} 9... Be7 {[%clk 0:01:57.8]} 10.
Bf4 {[%clk 0:02:25.2]} 10... O-O {[%clk 0:01:54.2]} 11. Bd3 {[%clk 0:02:25.6]}
11... a6 {[%clk 0:01:54.3]} 12. Rd1 {[%clk 0:02:14.2]} 12... b5 {[%clk
0:01:53.2]} 13. O-O {[%clk 0:02:12.8]} 13... Nbd7 {[%clk 0:01:53.7]} 14. e5
{[%clk 0:02:08.2]} 14... dxe5 {[%clk 0:01:44.7]} 15. Nxe5 {[%clk 0:02:06.2]}
15... Nxe5 {[%clk 0:01:34.5]} 16. Bxe5 {[%clk 0:02:06.8]} 16... Bd6 {[%clk
0:01:35.4]} 17. Bxf6 {[%clk 0:01:42.1]} 17... Qxf6 {[%clk 0:01:37.3]} 18. Bxh7+
{[%clk 0:01:41.7]} 18... Kh8 {[%clk 0:01:38]} 19. Ne4 {[%clk 0:01:22.5]} 19...
Bxh2+ {[%clk 0:01:15.9]} 20. Kxh2 {[%clk 0:01:24.4]} 20... Qh6+ {[%clk
0:01:17.5]} 21. Kg3 {[%clk 0:01:22.7]} 21... Qxh7 {[%clk 0:01:19.1]} 22. Rh1
{[%clk 0:01:21.4]} 1-0

[Event "*** Titled Tuesday Blitz"]
[Site "Chess.com"]
[Date "2018.06.05"]
[Round "7"]
[White "GoingKronos"]
[Black "orrbaverlekszarnyon"]
[Result "1-0"]
[WhiteElo "2332"]
[BlackElo "2225"]
[TimeControl "180+2"]
[EndTime "14:38:02 PDT"]
[Termination "GoingKronos won by resignation"]

1. Nf3 {[%clk 0:03:01.9]} 1... c5 {[%clk 0:03:00.7]} 2. e4 {[%clk 0:03:01.9]}
2... d6 {[%clk 0:02:57.4]} 3. c3 {[%clk 0:02:59.1]} 3... Nf6 {[%clk 0:02:57.3]}
4. Be2 {[%clk 0:02:59.2]} 4... g6 {[%clk 0:02:57.7]} 5. O-O {[%clk 0:02:58.8]}
5... Bg7 {[%clk 0:02:58.8]} 6. Bb5+ {[%clk 0:02:59.9]} 6... Bd7 {[%clk
0:02:59.3]} 7. Bxd7+ {[%clk 0:03:00.8]} 7... Qxd7 {[%clk 0:03:01.2]} 8. Re1
{[%clk 0:03:00.3]} 8... Nc6 {[%clk 0:03:01.3]} 9. d4 {[%clk 0:03:01.2]} 9...
cxd4 {[%clk 0:02:59.9]} 10. cxd4 {[%clk 0:03:02.4]} 10... d5 {[%clk 0:03:01.2]}
11. e5 {[%clk 0:03:02.2]} 11... Ne4 {[%clk 0:03:02.2]} 12. Nc3 {[%clk
0:02:37.9]} 12... Nxc3 {[%clk 0:03:02.5]} 13. bxc3 {[%clk 0:02:39.8]} 13... O-O
{[%clk 0:03:03.7]} 14. Bg5 {[%clk 0:02:12.7]} 14... Rfc8 {[%clk 0:02:53]} 15.
Qd2 {[%clk 0:02:11.7]} 15... Na5 {[%clk 0:02:51.4]} 16. Rac1 {[%clk 0:02:11.7]}
16... Rc6 {[%clk 0:02:40.6]} 17. e6 {[%clk 0:01:33.8]} 17... Rxe6 {[%clk
0:02:36]} 18. Rxe6 {[%clk 0:01:34.2]} 18... Qxe6 {[%clk 0:02:37.9]} 19. Re1
{[%clk 0:01:34.8]} 19... Qc6 {[%clk 0:02:09.3]} 20. Rxe7 {[%clk 0:01:30.4]}
20... Re8 {[%clk 0:02:07.7]} 21. Qe3 {[%clk 0:01:19.1]} 21... Rxe7 {[%clk
0:02:07.3]} 22. Qxe7 {[%clk 0:01:20]} 22... h6 {[%clk 0:02:08.7]} 23. Qd8+
{[%clk 0:01:13.5]} 23... Kh7 {[%clk 0:02:07.9]} 24. Qxa5 {[%clk 0:01:14.2]}
24... hxg5 {[%clk 0:02:05.1]} 25. Nxg5+ {[%clk 0:01:15.1]} 25... Kg8 {[%clk
0:02:04.7]} 26. h4 {[%clk 0:01:05.5]} 26... b6 {[%clk 0:02:05.5]} 27. Qxa7
{[%clk 0:01:02.5]} 27... Qxc3 {[%clk 0:02:01.5]} 28. Qxf7+ {[%clk 0:01:01.8]}
28... Kh8 {[%clk 0:02:02.7]} 29. Qe8+ {[%clk 0:01:00.2]} 1-0

[Event "*** Titled Tuesday Blitz"]
[Site "Chess.com"]
[Date "2018.06.05"]
[Round "7"]
[White "igorkovalenko"]
[Black "AndreyOstrovskiy"]
[Result "1-0"]
[WhiteElo "2845"]
[BlackElo "2672"]
[TimeControl "180+2"]
[EndTime "14:38:08 PDT"]
[Termination "igorkovalenko won by resignation"]

1. d4 {[%clk 0:03:01.9]} 1... Nf6 {[%clk 0:03:00.5]} 2. Nf3 {[%clk 0:03:01.5]}
2... e6 {[%clk 0:03:01.3]} 3. e3 {[%clk 0:03:02.9]} 3... d5 {[%clk 0:02:59.8]}
4. Bd3 {[%clk 0:03:04.4]} 4... c5 {[%clk 0:02:59.7]} 5. b3 {[%clk 0:03:04.8]}
5... Nc6 {[%clk 0:03:00.3]} 6. O-O {[%clk 0:03:06]} 6... Be7 {[%clk 0:02:57.2]}
7. dxc5 {[%clk 0:03:06.6]} 7... Bxc5 {[%clk 0:02:57.8]} 8. Bb2 {[%clk
0:03:07.7]} 8... O-O {[%clk 0:02:58.2]} 9. Nbd2 {[%clk 0:03:09.1]} 9... Nb4
{[%clk 0:02:51.3]} 10. Be2 {[%clk 0:03:10.1]} 10... b6 {[%clk 0:02:51.8]} 11. a3
{[%clk 0:03:11.1]} 11... Nc6 {[%clk 0:02:52.8]} 12. b4 {[%clk 0:03:12]} 12...
Bd6 {[%clk 0:02:51.3]} 13. c4 {[%clk 0:03:13.2]} 13... Bb7 {[%clk 0:02:48]} 14.
Rc1 {[%clk 0:03:11.2]} 14... dxc4 {[%clk 0:02:47.3]} 15. Nxc4 {[%clk 0:03:12]}
15... Be7 {[%clk 0:02:44.3]} 16. b5 {[%clk 0:03:12.9]} 16... Na5 {[%clk
0:02:39.7]} 17. Nxa5 {[%clk 0:03:13.3]} 17... bxa5 {[%clk 0:02:40.3]} 18. Qa4
{[%clk 0:03:12.2]} 18... Rc8 {[%clk 0:01:44.4]} 19. Rxc8 {[%clk 0:03:09.1]}
19... Bxc8 {[%clk 0:01:38.1]} 20. Rd1 {[%clk 0:03:03]} 20... Qc7 {[%clk
0:01:35.6]} 21. Rc1 {[%clk 0:03:03.1]} 21... Qd8 {[%clk 0:01:31.9]} 22. Bd4
{[%clk 0:03:01.5]} 22... Qd6 {[%clk 0:01:08.4]} 23. Qxa5 {[%clk 0:02:57.2]}
23... Qxa3 {[%clk 0:01:07.6]} 24. Qxa3 {[%clk 0:02:58.2]} 24... Bxa3 {[%clk
0:01:08.5]} 25. Ra1 {[%clk 0:02:59.8]} 25... Bb4 {[%clk 0:00:54.3]} 26. Rxa7
{[%clk 0:02:59]} 26... Nd7 {[%clk 0:00:47.6]} 27. h4 {[%clk 0:02:40.8]} 27... h6
{[%clk 0:00:44.3]} 28. b6 {[%clk 0:02:37]} 28... Bc5 {[%clk 0:00:44.4]} 29. Rxd7
{[%clk 0:02:34.9]} 29... Bxd7 {[%clk 0:00:43.4]} 30. Bxc5 {[%clk 0:02:36]} 30...
Rb8 {[%clk 0:00:42.2]} 31. Ne5 {[%clk 0:02:35.8]} 31... Bc8 {[%clk 0:00:42.7]}
32. Nc6 {[%clk 0:02:35.7]} 32... Ra8 {[%clk 0:00:42.2]} 33. Ne7+ {[%clk
0:02:35.2]} 1-0

[Event "*** Titled Tuesday Blitz"]
[Site "Chess.com"]
[Date "2018.06.05"]
[Round "7"]
[White "mazetofonias"]
[Black "gmjlh"]
[Result "1/2-1/2"]
[WhiteElo "2546"]
[BlackElo "2618"]
[TimeControl "180+2"]
[EndTime "14:38:38 PDT"]
[Termination "Game drawn by agreement"]

1. d4 {[%clk 0:03:00.6]} 1... d5 {[%clk 0:03:00.8]} 2. c4 {[%clk 0:03:01]} 2...
e6 {[%clk 0:03:01.8]} 3. Nf3 {[%clk 0:03:00.8]} 3... Nf6 {[%clk 0:03:02.4]} 4.
g3 {[%clk 0:03:01.3]} 4... Bb4+ {[%clk 0:03:02.6]} 5. Bd2 {[%clk 0:03:01.3]}
5... Be7 {[%clk 0:03:04]} 6. Bg2 {[%clk 0:03:02.1]} 6... O-O {[%clk 0:03:05.2]}
7. O-O {[%clk 0:03:03.6]} 7... c6 {[%clk 0:03:05.7]} 8. Qc2 {[%clk 0:03:02.8]}
8... Nbd7 {[%clk 0:03:04.3]} 9. Bg5 {[%clk 0:02:59.3]} 9... h6 {[%clk
0:03:02.9]} 10. Bxf6 {[%clk 0:02:59.2]} 10... Nxf6 {[%clk 0:03:04.6]} 11. Nbd2
{[%clk 0:03:00.8]} 11... Bd7 {[%clk 0:02:48.6]} 12. e4 {[%clk 0:03:01.2]} 12...
dxc4 {[%clk 0:02:49.2]} 13. Nxc4 {[%clk 0:03:00.9]} 13... c5 {[%clk 0:02:46.1]}
14. Rad1 {[%clk 0:02:52.3]} 14... cxd4 {[%clk 0:02:46.6]} 15. Nxd4 {[%clk
0:02:46.8]} 15... Qc7 {[%clk 0:02:45.5]} 16. Qe2 {[%clk 0:02:46.4]} 16... Rfc8
{[%clk 0:02:43.4]} 17. Rc1 {[%clk 0:02:47.4]} 17... b5 {[%clk 0:02:07.2]} 18. e5
{[%clk 0:02:44.3]} 18... Nd5 {[%clk 0:02:07.4]} 19. Bxd5 {[%clk 0:02:43.6]}
19... exd5 {[%clk 0:02:08.9]} 20. Nd6 {[%clk 0:02:35]} 20... Qxc1 {[%clk
0:02:06.3]} 21. Rxc1 {[%clk 0:02:36.9]} 21... Rxc1+ {[%clk 0:02:06.2]} 22. Kg2
{[%clk 0:02:38.1]} 22... Bxd6 {[%clk 0:01:44.6]} 23. exd6 {[%clk 0:02:40]} 23...
Re8 {[%clk 0:01:44.3]} 24. Qd2 {[%clk 0:01:39]} 24... Ree1 {[%clk 0:01:34.8]}
25. Nf3 {[%clk 0:01:37.4]} 25... Red1 {[%clk 0:01:30.2]} 26. Qa5 {[%clk
0:01:38.1]} 1/2-1/2

[Event "*** Titled Tuesday Blitz"]
[Site "Chess.com"]
[Date "2018.06.05"]
[Round "7"]
[White "Quiet_Desperation"]
[Black "ChainsOfFantasia"]
[Result "1-0"]
[WhiteElo "2385"]
[BlackElo "2396"]
[TimeControl "180+2"]
[EndTime "14:38:52 PDT"]
[Termination "Quiet_Desperation won by resignation"]

1. e4 {[%clk 0:03:01.9]} 1... c6 {[%clk 0:03:00.5]} 2. Nf3 {[%clk 0:03:02.5]}
2... d5 {[%clk 0:03:02.4]} 3. Nc3 {[%clk 0:03:03.9]} 3... Nf6 {[%clk 0:03:03.4]}
4. e5 {[%clk 0:03:02.7]} 4... Ne4 {[%clk 0:03:04.9]} 5. h3 {[%clk 0:02:58.8]}
5... Qb6 {[%clk 0:03:06]} 6. d4 {[%clk 0:02:55]} 6... f6 {[%clk 0:03:07.1]} 7.
Bd3 {[%clk 0:02:52.2]} 7... Nxc3 {[%clk 0:03:02.3]} 8. bxc3 {[%clk 0:02:51.8]}
8... Nd7 {[%clk 0:03:03.5]} 9. O-O {[%clk 0:02:49.9]} 9... e6 {[%clk 0:03:02]}
10. Nh4 {[%clk 0:02:45.4]} 10... fxe5 {[%clk 0:02:27.7]} 11. Qh5+ {[%clk
0:02:39.4]} 11... Kd8 {[%clk 0:02:28.6]} 12. Ng6 {[%clk 0:02:08.4]} 12... Nf6
{[%clk 0:02:28]} 13. Qh4 {[%clk 0:02:04.2]} 13... Rg8 {[%clk 0:02:25.3]} 14.
Nxf8 {[%clk 0:01:53.8]} 14... Rxf8 {[%clk 0:02:27.2]} 15. dxe5 {[%clk
0:01:54.5]} 15... Bd7 {[%clk 0:02:24.5]} 16. exf6 {[%clk 0:01:53.9]} 16... gxf6
{[%clk 0:02:26.4]} 17. Be3 {[%clk 0:01:19.4]} 17... Qa5 {[%clk 0:02:24.5]} 18.
Qxh7 {[%clk 0:01:08.6]} 18... Kc7 {[%clk 0:02:16.8]} 19. Rab1 {[%clk 0:01:00.9]}
19... b6 {[%clk 0:02:17]} 20. c4 {[%clk 0:00:48.6]} 20... Qxa2 {[%clk
0:02:15.9]} 21. cxd5 {[%clk 0:00:48.4]} 21... cxd5 {[%clk 0:02:13.6]} 22. c4
{[%clk 0:00:40.1]} 22... dxc4 {[%clk 0:02:11.8]} 23. Bxc4 {[%clk 0:00:39.3]}
23... Qa5 {[%clk 0:02:07.4]} 24. Rfc1 {[%clk 0:00:37.9]} 24... Rad8 {[%clk
0:01:58.2]} 25. Bxe6+ {[%clk 0:00:27.7]} 25... Kd6 {[%clk 0:01:54.5]} 26. Bxd7
{[%clk 0:00:27.7]} 26... Qe5 {[%clk 0:01:45.1]} 27. Rc6+ {[%clk 0:00:21.5]}
27... Kd5 {[%clk 0:01:42.9]} 28. Rd1+ {[%clk 0:00:22.4]} 1-0

[Event "*** Titled Tuesday Blitz"]
[Site "Chess.com"]
[Date "2018.06.05"]
[Round "7"]
[White "SamCopeland"]
[Black "nicegg"]
[Result "1-0"]
[WhiteElo "2035"]
[BlackElo "1890"]
[TimeControl "180+2"]
[EndTime "14:39:21 PDT"]
[Termination "SamCopeland won by checkmate"]

1. e4 {[%clk 0:03:01.4]} 1... e5 {[%clk 0:03:00.1]} 2. Nf3 {[%clk 0:03:01.7]}
2... Nc6 {[%clk 0:03:01.3]} 3. Bc4 {[%clk 0:03:00.1]} 3... Nf6 {[%clk
0:03:01.1]} 4. d4 {[%clk 0:03:00.5]} 4... exd4 {[%clk 0:03:01.7]} 5. O-O {[%clk
0:03:00.6]} 5... d6 {[%clk 0:02:52]} 6. Ng5 {[%clk 0:02:44.3]} 6... Ne5 {[%clk
0:02:45.2]} 7. Qxd4 {[%clk 0:02:39.1]} 7... h6 {[%clk 0:02:45.2]} 8. Nf3 {[%clk
0:02:32.4]} 8... Nxf3+ {[%clk 0:02:24]} 9. gxf3 {[%clk 0:02:34.3]} 9... Bh3
{[%clk 0:02:24.8]} 10. Re1 {[%clk 0:02:31.2]} 10... Be7 {[%clk 0:02:25.6]} 11.
Kh1 {[%clk 0:02:30.1]} 11... O-O {[%clk 0:02:16.8]} 12. Rg1 {[%clk 0:02:29]}
12... Kh8 {[%clk 0:01:57.5]} 13. Nc3 {[%clk 0:02:23.9]} 13... Nh5 {[%clk
0:01:47.6]} 14. Bxh6 {[%clk 0:01:51.4]} 14... Bf6 {[%clk 0:01:46]} 15. Qd5
{[%clk 0:01:51.4]} 15... Be5 {[%clk 0:01:26.3]} 16. Bg5 {[%clk 0:01:33.6]} 16...
Qd7 {[%clk 0:01:07.5]} 17. f4 {[%clk 0:01:17.7]} 17... Bxf4 {[%clk 0:00:40.8]}
18. Bxf4 {[%clk 0:01:04.9]} 18... Nxf4 {[%clk 0:00:41.5]} 19. Qg5 {[%clk
0:01:04.6]} 19... Bg2+ {[%clk 0:00:14]} 20. Rxg2 {[%clk 0:01:03.5]} 20... Nxg2
{[%clk 0:00:15]} 21. Rg1 {[%clk 0:00:55.4]} 21... f6 {[%clk 0:00:11.2]} 22. Qh5#
{[%clk 0:00:54.7]} 1-0

[Event "*** Titled Tuesday Blitz"]
[Site "Chess.com"]
[Date "2018.06.05"]
[Round "7"]
[White "vugarrasulov"]
[Black "Paralinch"]
[Result "1-0"]
[WhiteElo "2763"]
[BlackElo "2833"]
[TimeControl "180+2"]
[EndTime "14:39:29 PDT"]
[Termination "vugarrasulov won by resignation"]

1. e4 {[%clk 0:03:01]} 1... c6 {[%clk 0:03:01.1]} 2. d4 {[%clk 0:03:00.4]} 2...
d5 {[%clk 0:03:02.7]} 3. Nc3 {[%clk 0:03:01.7]} 3... dxe4 {[%clk 0:03:03.9]} 4.
Nxe4 {[%clk 0:03:03.6]} 4... Bf5 {[%clk 0:03:05.3]} 5. Nc5 {[%clk 0:03:03.7]}
5... Nd7 {[%clk 0:03:04.4]} 6. Nb3 {[%clk 0:03:01.1]} 6... e6 {[%clk 0:03:01.8]}
7. Nf3 {[%clk 0:03:01.9]} 7... Ngf6 {[%clk 0:03:01.8]} 8. Bd3 {[%clk 0:03:02.3]}
8... Bg6 {[%clk 0:02:59.3]} 9. O-O {[%clk 0:03:02.8]} 9... Bd6 {[%clk
0:02:56.9]} 10. c4 {[%clk 0:03:00.6]} 10... O-O {[%clk 0:02:55.2]} 11. Qe2
{[%clk 0:02:59.8]} 11... Re8 {[%clk 0:02:44.6]} 12. Bxg6 {[%clk 0:02:59.9]}
12... hxg6 {[%clk 0:02:45.3]} 13. Rd1 {[%clk 0:02:45]} 13... Qc7 {[%clk
0:02:40.4]} 14. h3 {[%clk 0:02:32.5]} 14... c5 {[%clk 0:02:24.1]} 15. dxc5
{[%clk 0:02:28.7]} 15... Nxc5 {[%clk 0:02:22.4]} 16. Nbd4 {[%clk 0:02:24.7]}
16... a6 {[%clk 0:02:21.2]} 17. Be3 {[%clk 0:02:16]} 17... e5 {[%clk 0:02:17.6]}
18. Nc2 {[%clk 0:02:16.9]} 18... e4 {[%clk 0:02:14]} 19. Nfe1 {[%clk 0:02:16.2]}
19... Be5 {[%clk 0:02:04.3]} 20. Bd4 {[%clk 0:02:14.3]} 20... Na4 {[%clk
0:02:00.5]} 21. b3 {[%clk 0:02:00.9]} 21... Nc3 {[%clk 0:01:57.3]} 22. Bxc3
{[%clk 0:02:02.1]} 22... Bxc3 {[%clk 0:01:59.2]} 23. Rac1 {[%clk 0:02:01.1]}
23... Bb2 {[%clk 0:01:59.6]} 24. Rb1 {[%clk 0:02:01.7]} 24... Be5 {[%clk
0:02:00.9]} 25. Ne3 {[%clk 0:02:02.7]} 25... Rad8 {[%clk 0:01:55.6]} 26. Rxd8
{[%clk 0:02:01.9]} 26... Rxd8 {[%clk 0:01:55.9]} 27. Rd1 {[%clk 0:02:03.8]}
27... Bf4 {[%clk 0:01:50.4]} 28. N1c2 {[%clk 0:02:03.5]} 28... Re8 {[%clk
0:01:41.9]} 29. Nd5 {[%clk 0:01:43.1]} 29... Nxd5 {[%clk 0:01:40.8]} 30. Rxd5
{[%clk 0:01:45]} 30... f5 {[%clk 0:01:24.9]} 31. Ne3 {[%clk 0:01:40.9]} 31...
Bxe3 {[%clk 0:01:17]} 32. Qxe3 {[%clk 0:01:33]} 32... f4 {[%clk 0:01:16.5]} 33.
Qd4 {[%clk 0:01:34.3]} 33... Re7 {[%clk 0:00:54.3]} 34. Rd8+ {[%clk 0:01:34.7]}
34... Kh7 {[%clk 0:00:55.3]} 35. Qd5 {[%clk 0:01:36.1]} 35... Qe5 {[%clk
0:00:50.6]} 36. Qg8+ {[%clk 0:01:33.8]} 36... Kh6 {[%clk 0:00:51.8]} 37. Qh8+
{[%clk 0:01:35.1]} 37... Kg5 {[%clk 0:00:50.7]} 38. Rd5 {[%clk 0:01:37]} 38...
e3 {[%clk 0:00:52.2]} 39. Rxe5+ {[%clk 0:01:34.3]} 39... Rxe5 {[%clk 0:00:54.1]}
40. fxe3 {[%clk 0:01:35.6]} 40... fxe3 {[%clk 0:00:56]} 41. Kf1 {[%clk
0:01:36.6]} 1-0

[Event "*** Titled Tuesday Blitz"]
[Site "Chess.com"]
[Date "2018.06.05"]
[Round "7"]
[White "Kimster98"]
[Black "Xeniya2005"]
[Result "1-0"]
[WhiteElo "2541"]
[BlackElo "1935"]
[TimeControl "180+2"]
[EndTime "14:39:29 PDT"]
[Termination "Kimster98 won by resignation"]

1. Nf3 {[%clk 0:03:01.9]} 1... Nf6 {[%clk 0:03:00]} 2. c4 {[%clk 0:03:02.7]}
2... g6 {[%clk 0:03:01.5]} 3. Nc3 {[%clk 0:03:03.6]} 3... Bg7 {[%clk 0:03:03]}
4. e4 {[%clk 0:03:04.8]} 4... d6 {[%clk 0:03:04.1]} 5. d4 {[%clk 0:03:06.3]}
5... O-O {[%clk 0:03:04.9]} 6. Be2 {[%clk 0:03:07.9]} 6... e5 {[%clk 0:03:05.4]}
7. O-O {[%clk 0:03:09.8]} 7... Nc6 {[%clk 0:03:06.3]} 8. d5 {[%clk 0:03:09.7]}
8... Ne7 {[%clk 0:03:07.1]} 9. b4 {[%clk 0:03:11.3]} 9... a5 {[%clk 0:03:07.3]}
10. Ba3 {[%clk 0:03:06.5]} 10... axb4 {[%clk 0:03:07.7]} 11. Bxb4 {[%clk
0:03:08.4]} 11... Nd7 {[%clk 0:03:07.9]} 12. Nd2 {[%clk 0:03:05.3]} 12... f5
{[%clk 0:03:07.8]} 13. Nb3 {[%clk 0:03:04.2]} 13... b6 {[%clk 0:02:59.6]} 14. a4
{[%clk 0:03:04]} 14... fxe4 {[%clk 0:02:58.3]} 15. Nxe4 {[%clk 0:03:05.9]} 15...
Nf5 {[%clk 0:02:55.1]} 16. Bc3 {[%clk 0:02:40.3]} 16... Nf6 {[%clk 0:02:45.5]}
17. Nbd2 {[%clk 0:02:35.3]} 17... Bd7 {[%clk 0:02:39.9]} 18. Nxf6+ {[%clk
0:02:31.3]} 18... Bxf6 {[%clk 0:02:39.6]} 19. Ne4 {[%clk 0:02:32.8]} 19... Bg7
{[%clk 0:02:37.1]} 20. h3 {[%clk 0:01:52.1]} 20... Ra7 {[%clk 0:02:28.5]} 21. a5
{[%clk 0:01:45.5]} 21... bxa5 {[%clk 0:02:27.9]} 22. Rxa5 {[%clk 0:01:41.4]}
22... Qa8 {[%clk 0:02:23.8]} 23. Rxa7 {[%clk 0:01:38.3]} 23... Qxa7 {[%clk
0:02:24.1]} 24. Qa1 {[%clk 0:01:39.9]} 24... Ra8 {[%clk 0:02:21.3]} 25. Qxa7
{[%clk 0:01:40.8]} 25... Rxa7 {[%clk 0:02:21.9]} 26. Rb1 {[%clk 0:01:41.3]}
26... h6 {[%clk 0:02:18.7]} 27. c5 {[%clk 0:01:36.1]} 27... Kf7 {[%clk
0:02:10.1]} 28. g4 {[%clk 0:01:27.1]} 28... Nd4 {[%clk 0:02:04.3]} 29. Bxd4
{[%clk 0:01:27.1]} 29... exd4 {[%clk 0:02:04.4]} 30. cxd6 {[%clk 0:01:29]} 30...
cxd6 {[%clk 0:02:04.3]} 31. Nxd6+ {[%clk 0:01:30.9]} 31... Ke7 {[%clk
0:02:03.6]} 32. Nc4 {[%clk 0:01:31.1]} 32... Bf6 {[%clk 0:01:53.9]} 33. Bd3
{[%clk 0:01:23.1]} 33... Kf7 {[%clk 0:01:49.4]} 34. f4 {[%clk 0:01:13.7]} 34...
Kg7 {[%clk 0:01:41.6]} 35. Ne5 {[%clk 0:01:10.2]} 35... Be8 {[%clk 0:01:39.3]}
36. d6 {[%clk 0:01:08.1]} 36... Bxe5 {[%clk 0:01:32.2]} 37. fxe5 {[%clk
0:01:08.8]} 37... Bd7 {[%clk 0:01:32.8]} 38. Rc1 {[%clk 0:01:07]} 38... Kf7
{[%clk 0:01:29.2]} 39. Bc4+ {[%clk 0:01:07.2]} 39... Be6 {[%clk 0:01:27.4]} 40.
Rf1+ {[%clk 0:01:07.3]} 40... Ke8 {[%clk 0:01:26.4]} 41. Bxe6 {[%clk 0:01:05]}
1-0

[Event "*** Titled Tuesday Blitz"]
[Site "Chess.com"]
[Date "2018.06.05"]
[Round "7"]
[White "saraswathii"]
[Black "Sameer555"]
[Result "1-0"]
[WhiteElo "2306"]
[BlackElo "2183"]
[TimeControl "180+2"]
[EndTime "14:39:31 PDT"]
[Termination "saraswathii won on time"]

1. e4 {[%clk 0:02:58.8]} 1... c6 {[%clk 0:01:36.9]} 2. d3 {[%clk 0:02:59.2]}
2... d5 {[%clk 0:01:33.6]} 3. Nd2 {[%clk 0:03:00.6]} 3... e6 {[%clk 0:01:33.6]}
4. Ngf3 {[%clk 0:03:01.5]} 4... Nf6 {[%clk 0:01:34.9]} 5. g3 {[%clk 0:03:02.8]}
5... Nbd7 {[%clk 0:01:35.8]} 6. Bg2 {[%clk 0:03:04.3]} 6... Bd6 {[%clk
0:01:37.2]} 7. O-O {[%clk 0:03:05.4]} 7... O-O {[%clk 0:01:38.6]} 8. Qe2 {[%clk
0:03:06.7]} 8... e5 {[%clk 0:01:39.7]} 9. Rd1 {[%clk 0:02:53.7]} 9... Re8 {[%clk
0:01:40.4]} 10. Nf1 {[%clk 0:02:51.4]} 10... Qc7 {[%clk 0:01:41.5]} 11. Nh4
{[%clk 0:02:47.6]} 11... Nf8 {[%clk 0:01:42.3]} 12. Ne3 {[%clk 0:02:46.7]} 12...
g6 {[%clk 0:01:40.9]} 13. exd5 {[%clk 0:02:45.5]} 13... cxd5 {[%clk 0:01:35]}
14. Nxd5 {[%clk 0:02:45.5]} 14... Nxd5 {[%clk 0:01:36.9]} 15. Bxd5 {[%clk
0:02:46.7]} 15... Kg7 {[%clk 0:01:33.5]} 16. c3 {[%clk 0:02:37.9]} 16... f5
{[%clk 0:01:32.1]} 17. Be3 {[%clk 0:02:30.8]} 17... Bd7 {[%clk 0:01:28.5]} 18.
Bg2 {[%clk 0:02:27.7]} 18... Rad8 {[%clk 0:01:27.1]} 19. Nf3 {[%clk 0:02:19.9]}
19... h6 {[%clk 0:01:27.5]} 20. Qc2 {[%clk 0:02:08.6]} 20... Bc6 {[%clk
0:01:26.2]} 21. d4 {[%clk 0:02:06]} 21... e4 {[%clk 0:01:23.5]} 22. Nd2 {[%clk
0:02:03.4]} 22... b5 {[%clk 0:01:21.3]} 23. Rac1 {[%clk 0:01:58.3]} 23... g5
{[%clk 0:01:20.5]} 24. d5 {[%clk 0:01:37.4]} 24... f4 {[%clk 0:01:20.1]} 25.
Bd4+ {[%clk 0:01:37.5]} 25... Kg8 {[%clk 0:01:10.5]} 26. dxc6 {[%clk 0:01:37.8]}
26... e3 {[%clk 0:01:10.4]} 27. Ne4 {[%clk 0:01:36.1]} 27... exf2+ {[%clk
0:01:01.8]} 28. Qxf2 {[%clk 0:01:31.7]} 1-0